bitfinex-derivatives/quotes_SOLF0:USTF0_20250614
["timestamp","ask_amount","ask_price","bid_price","bid_amount"]
[1749927937586,0.04731074,143.85,143.82,5.33156198]
[1749927937887,6.99661074,143.85,143.82,12.28186198]
[1749927938080,0.04731074,143.85,143.82,0.04420858]
[1749927938284,5.33466414,143.85,143.82,0.04420858]
[1749927938486,5.2873534,143.83,143.78,36.62]
[1749927939286,6.952,143.79,143.76,6.9531]
[1749927939587,7.00434578,143.79,143.76,7.00318002]
[1749927939786,0.05234578,143.79,143.77,6.9529]
[1749927939989,36.62,143.85,143.78,5.2873534]
[1749927940175,6.9506,143.82,143.79,6.9517]
[1749927940375,36.62,143.85,143.78,5.2873534]
[1749927940788,6.9512,143.81,143.78,12.2394534]
[1749927940994,6.99798557,143.81,143.78,12.28744754]
[1749927941884,0.04678557,143.81,143.79,6.9519]
[1749927942484,6.99788557,143.81,143.79,6.9519]
[1749927942792,6.99788557,143.81,143.78,12.28764754]
[1749927944093,6.9516,143.8,143.78,7.00029414]
[1749927944284,6.9516,143.8,143.78,0.04799414]
[1749927945291,6.952,143.79,143.78,0.04799414]
[1749927946288,6.9517,143.8,143.78,0.04799414]
[1749927946691,0.04678557,143.81,143.78,0.04799414]
[1749927947393,0.04678557,143.81,143.78,5.33534754]
[1749927947584,0.04678557,143.81,143.79,36.64]
[1749927947985,41.9273534,143.88,143.8,5.2873534]
[1749927948188,12.96689385,143.87,143.8,5.2873534]
[1749927948388,6.9497,143.84,143.81,6.9506]
[1749927949095,0.04711131,143.84,143.81,5.33615226]
[1749927949591,0.04711131,143.84,143.82,6.9503]
[1749927951887,6.99671131,143.84,143.82,6.9503]
[1749927952097,6.99671131,143.84,143.81,12.28695226]
[1749927952300,6.9505,143.82,143.81,0.04879886]
[1749927953387,6.9503,143.83,143.81,0.04879886]
[1749927953791,0.04711131,143.84,143.81,0.04879886]
[1749927954588,6.9505,143.82,143.81,0.04879886]
[1749927954785,0.04711131,143.84,143.81,0.04879886]
[1749927955196,6.95,143.83,143.81,0.04879886]
[1749927955598,0.04711131,143.84,143.81,0.04879886]
[1749927955794,6.9505,143.82,143.81,0.04879886]
[1749927958101,6.9503,143.83,143.81,0.04879886]
[1749927959598,6.9505,143.82,143.81,0.04879886]
[1749927959794,0.04711131,143.84,143.81,0.04879886]
[1749927960394,0.04711131,143.84,143.83,5.2873534]
[1749927960699,6.9479,143.88,143.83,41.9073534]
[1749927960901,43.08318716,143.93,143.86,5.2873534]
[1749927961099,10.40029395,143.92,143.88,5.2873534]
[1749927961306,43.08318716,143.96,143.9,5.2873534]
[1749927961597,0.04745491,143.94,143.92,0.04929695]
[1749927961790,5.64475683,143.94,143.92,0.04929695]
[1749927961999,0.04745491,143.94,143.92,0.04929695]
[1749927962393,0.04745491,143.94,143.92,5.33665035]
[1749927962604,0.04745491,143.94,143.92,41.95665035]
[1749927962796,6.9426,143.99,143.95,6.9439]
[1749927963106,6.9208,144.01,143.95,5.2873534]
[1749927963303,10.39856456,144.0,143.94,5.2873534]
[1749927963501,36.62,144.02,143.96,5.2873534]
[1749927963802,0.04641555,144.0,143.98,0.0491066]
[1749927964004,0.04641555,144.0,143.98,6.9919066]
[1749927964499,0.04641555,144.0,143.98,0.0491066]
[1749927965100,0.04641555,144.0,143.98,5.33646]
[1749927965402,0.04641555,144.0,143.98,0.0491066]
[1749927968201,6.9423,143.99,143.98,0.0491066]
[1749927968614,0.04641555,144.0,143.98,0.0491066]
[1749927969812,6.9423,143.99,143.98,0.0491066]
[1749927970808,12.2273534,143.99,143.9,2.425]
[1749927971111,9.9758534,143.99,143.9,9.3713]
[1749927971303,9.9758534,143.99,143.91,5.2873534]
[1749927971304,6.9449,143.94,143.91,5.2873534]
[1749927971610,0.04629803,143.94,143.93,5.2873534]
[1749927971905,0.04629803,143.94,143.93,41.8873534]
[1749927972409,0.04629803,143.94,143.93,48.8325534]
[1749927972606,0.04629803,143.94,143.93,41.8873534]
[1749927973501,0.04629803,143.94,143.93,48.8325534]
[1749927976010,0.04629803,143.94,143.93,41.8873534]
[1749927977108,0.04629803,143.94,143.93,48.8325534]
[1749927977299,36.6,144.0,143.95,5.2873534]
[1749927977608,41.8873534,144.03,143.95,5.2873534]
[1749927978105,6.9422,144.0,143.96,6.9435]
[1749927978411,6.99248365,144.0,143.98,0.04597139]
[1749927978913,6.9423,143.99,143.98,0.04597139]
[1749927988518,6.99238365,144.0,143.98,0.04597139]
[1749927988918,0.05028365,144.0,143.98,0.04597139]
[1749927989515,0.05028365,144.0,143.98,6.98847139]
[1749927991721,6.99228365,144.0,143.98,6.98847139]
[1749927992021,0.05028365,144.0,143.98,0.04597139]
[1749927992514,6.9423,143.99,143.98,0.04597139]
[1749927992914,6.99248365,144.0,143.98,0.04597139]
[1749927993108,0.05028365,144.0,143.98,0.04597139]
[1749927993313,0.05028365,144.0,143.99,12.2296534]
[1749927994721,0.05028365,144.0,143.98,0.04597139]
[1749927995225,6.9423,143.99,143.98,0.04597139]
[1749927995920,6.9443,143.95,143.94,36.8]
[1749927999618,6.9443,143.95,143.93,0.05107541]
[1749927999925,6.9447,143.94,143.93,0.05107541]
[1749928004330,6.9445,143.95,143.93,0.05107541]
[1749928005018,6.9447,143.94,143.93,0.05107541]
[1749928008229,0.05246032,143.96,143.93,0.05107541]
[1749928008724,6.9444,143.95,143.93,0.05107541]
[1749928009332,6.9444,143.95,143.93,6.99627541]
[1749928009732,6.99636032,143.96,143.93,6.99627541]
[1749928010134,0.05246032,143.96,143.93,6.99627541]
[1749928010332,6.9444,143.95,143.93,0.05107541]
[1749928011833,6.99646032,143.96,143.93,6.99617541]
[1749928013031,0.05246032,143.96,143.94,12.2316534]
[1749928013622,0.05246032,143.96,143.95,6.9443]
[1749928013827,39.2159,144.02,143.95,36.82]
[1749928014032,5.62319261,144.01,143.95,36.82]
[1749928014232,4.85726068,144.0,143.95,36.82]
[1749928014531,4.85734065,143.99,143.95,36.82]
[1749928014724,0.05271409,143.98,143.96,0.04380232]
[1749928015233,6.9452,143.93,143.92,36.82]
[1749928016728,6.99213544,143.94,143.92,36.82]
[1749928018837,0.04723544,143.94,143.92,36.82]
[1749928019425,0.04723544,143.94,143.93,6.9452]
[1749928020532,0.04723544,143.94,143.92,36.82]
[1749928021128,6.9452,143.93,143.92,36.82]
[1749928022137,6.9457,143.92,143.91,8.102e-05]
[1749928022339,9.7313534,143.93,143.86,49.54107304]
[1749928022541,6.9481,143.87,143.86,49.54107304]
[1749928023033,6.9475,143.89,143.86,36.68]
[1749928023237,0.04399228,143.89,143.86,36.72513758]
[1749928023845,6.948,143.88,143.86,36.72513758]
[1749928024038,0.04399228,143.89,143.86,36.72513758]
[1749928024430,0.04399228,143.89,143.86,0.04513758]
[1749928025742,0.04399228,143.89,143.87,5.2873534]
[1749928026130,5.2873534,143.95,143.87,41.9673534]
[1749928026336,41.9673534,143.97,143.87,41.9673534]
[1749928026654,6.9455,143.93,143.89,6.9469]
[1749928027244,0.05128201,143.92,143.9,0.05027657]
[1749928028845,6.99708201,143.92,143.9,0.05027657]
[1749928029645,6.9462,143.91,143.9,0.05027657]
[1749928032147,12.2335534,143.91,143.9,7.657e-05]
[1749928033850,6.9462,143.91,143.9,7.657e-05]
[1749928035048,6.99718201,143.92,143.9,7.657e-05]
[1749928035245,0.05128201,143.92,143.9,7.657e-05]
[1749928035544,6.99738201,143.92,143.9,7.657e-05]
[1749928037346,6.9462,143.91,143.9,7.657e-05]
[1749928037846,0.05128201,143.92,143.9,7.657e-05]
[1749928038055,0.05128201,143.92,143.9,6.94677657]
[1749928038258,0.05128201,143.92,143.9,7.657e-05]
[1749928039155,0.05128201,143.92,143.9,6.94657657]
[1749928040158,6.99708201,143.92,143.9,7.657e-05]
[1749928041355,6.9462,143.91,143.9,7.657e-05]
[1749928042466,11.81374263,143.91,143.9,7.657e-05]
[1749928042663,11.81374096,143.91,143.9,7.657e-05]
[1749928042859,11.81369907,143.91,143.9,7.657e-05]
[1749928043466,11.81369855,143.91,143.9,7.657e-05]
[1749928043668,6.9462,143.91,143.9,7.657e-05]
[1749928043868,17.44993127,143.91,143.9,7.657e-05]
[1749928044170,17.45684028,143.91,143.9,7.657e-05]
[1749928044358,20.06593115,143.91,143.9,7.657e-05]
[1749928044560,15.19229906,143.91,143.9,7.657e-05]
[1749928044869,12.58320821,143.91,143.9,7.657e-05]
[1749928045062,20.06571415,143.91,143.9,7.657e-05]
[1749928045262,20.06563584,143.91,143.9,7.657e-05]
[1749928045462,20.0654914,143.91,143.9,7.657e-05]
[1749928045870,20.06563584,143.91,143.9,7.657e-05]
[1749928046169,14.42862763,143.91,143.9,7.657e-05]
[1749928046371,14.42866312,143.91,143.9,7.657e-05]
[1749928046558,14.42910844,143.91,143.9,7.657e-05]
[1749928046759,9.55532259,143.91,143.9,7.657e-05]
[1749928047059,14.43054309,143.91,143.9,7.657e-05]
[1749928047267,6.9462,143.91,143.9,7.657e-05]
[1749928052967,0.05128201,143.92,143.9,7.657e-05]
[1749928054277,0.05128201,143.92,143.9,6.94667657]
[1749928056673,6.99708201,143.92,143.9,7.657e-05]
[1749928056878,0.05128201,143.92,143.9,7.657e-05]
[1749928057376,6.9462,143.91,143.9,7.657e-05]
[1749928057877,12.2335534,143.91,143.9,7.657e-05]
[1749928058178,6.9462,143.91,143.9,7.657e-05]
[1749928060783,6.949,143.86,143.83,41.2284]
[1749928061679,6.949,143.86,143.83,48.1782]
[1749928061876,6.949,143.86,143.83,48.22841638]
[1749928061877,6.99302503,143.86,143.83,48.22841638]
[1749928064775,0.04402503,143.86,143.83,48.22841638]
[1749928066086,6.99272503,143.86,143.83,48.22841638]
[1749928068089,0.04402503,143.86,143.83,46.56596978]
[1749928068390,6.9479,143.88,143.85,6.9488]
[1749928068779,6.9479,143.88,143.83,46.5157534]
[1749928069285,0.0524181,143.87,143.84,0.04966352]
[1749928069782,0.0524181,143.87,143.85,6.9488]
[1749928069972,7.0005181,143.87,143.85,6.9488]
[1749928070590,6.9486,143.86,143.84,0.04966352]
[1749928070791,0.0524181,143.87,143.84,0.04966352]
[1749928071284,7.0007181,143.87,143.84,6.99896352]
[1749928072382,0.0524181,143.87,143.84,0.04966352]
[1749928072880,6.9489,143.86,143.84,0.04966352]
[1749928075090,6.9491,143.85,143.84,0.04966352]
[1749928076089,0.0524181,143.87,143.84,0.04966352]
[1749928076690,6.9489,143.86,143.84,0.04966352]
[1749928077486,6.9491,143.85,143.84,0.04966352]
[1749928082995,0.0524181,143.87,143.84,36.68966352]
[1749928083188,0.0524181,143.87,143.85,6.9491]
[1749928083393,7.0008181,143.87,143.84,36.68966352]
[1749928083695,0.0524181,143.87,143.84,36.68966352]
[1749928083895,0.0524181,143.87,143.85,5.2873534]
[1749928084093,6.9468,143.9,143.85,9.9134534]
[1749928084293,6.9468,143.9,143.87,5.2873534]
[1749928084898,6.9472,143.89,143.86,2.3812]
[1749928085092,0.05320117,143.89,143.86,2.42971668]
[1749928085597,6.9476,143.88,143.86,2.42971668]
[1749928086191,6.9476,143.88,143.86,0.04851668]
[1749928086390,0.05320117,143.89,143.86,0.04851668]
[1749928086798,6.9481,143.87,143.86,0.04851668]
[1749928092404,6.9478,143.88,143.86,0.04851668]
[1749928092602,0.05320117,143.89,143.86,0.04851668]
[1749928093604,6.9476,143.88,143.86,0.04851668]
[1749928094004,0.05320117,143.89,143.86,0.04851668]
[1749928094205,6.9481,143.87,143.86,0.04851668]
[1749928095203,6.9478,143.88,143.86,0.04851668]
[1749928095807,6.9481,143.87,143.86,0.04851668]
[1749928096407,6.9479,143.88,143.86,0.04851668]
[1749928097605,6.9481,143.87,143.86,0.04851668]
[1749928099111,0.05320117,143.89,143.86,0.04851668]
[1749928099411,0.05320117,143.89,143.86,5.33587008]
[1749928099808,7.00060117,143.89,143.86,12.28417008]
[1749928100213,0.05320117,143.89,143.86,5.33587008]
[1749928100512,0.05320117,143.89,143.87,6.9478]
[1749928101010,7.00040117,143.89,143.87,6.9478]
[1749928101406,0.05320117,143.89,143.87,6.9478]
[1749928102314,0.05320117,143.89,143.88,6.9476]
[1749928102713,6.9453,143.93,143.88,41.9273534]
[1749928102905,6.44543304,143.95,143.9,5.2873534]
[1749928103611,0.04625451,143.94,143.91,0.04632659]
[1749928103808,0.04625451,143.94,143.93,6.9451]
[1749928104907,6.44543304,143.95,143.94,6.9447]
[1749928108110,6.44543304,143.95,143.92,36.64]
[1749928108816,6.9447,143.94,143.92,36.64]
[1749928110411,6.44543304,143.95,143.92,36.64]
[1749928111014,6.44543304,143.95,143.94,6.9447]
[1749928111713,43.3996,144.04,143.98,6.9425]
[1749928111910,2.62992997,144.03,143.96,36.62]
[1749928112107,6.9418,144.01,143.96,36.62]
[1749928112519,0.04521433,144.0,143.97,0.05229432]
[1749928112716,0.04521433,144.0,143.98,6.9427]
[1749928113017,0.04521433,144.0,143.97,0.05229432]
[1749928113217,0.04521433,144.0,143.99,6.9423]
[1749928114110,6.9401,144.04,144.01,6.9413]
[1749928114507,36.62,144.07,144.01,6.9413]
[1749928114717,6.9398,144.05,144.01,6.9413]
[1749928115123,0.04965467,144.04,144.02,0.04941456]
[1749928115509,6.98965467,144.04,144.02,0.04941456]
[1749928115821,0.04965467,144.04,144.02,0.04941456]
[1749928116208,6.9404,144.03,144.02,0.04941456]
[1749928116620,0.04965467,144.04,144.02,0.04941456]
[1749928116815,0.04965467,144.04,144.03,6.9404]
[1749928117019,5.29181667,144.1,144.03,6.9404]
[1749928117321,6.913,144.12,144.04,36.62]
[1749928117322,2.63097144,144.09,144.04,36.62]
[1749928117523,6.9388,144.07,144.04,36.62]
[1749928117921,6.9388,144.07,144.04,36.66868324]
[1749928119417,6.9388,144.07,144.04,43.60848324]
[1749928121023,6.9388,144.07,144.04,36.66868324]
[1749928121227,6.939,144.06,144.04,36.66868324]
[1749928121630,14.7512145,144.12,144.04,43.60858324]
[1749928121823,6.9385,144.07,144.04,36.66868324]
[1749928122122,7.8382145,144.1,144.04,36.66868324]
[1749928122321,2.64022281,144.09,144.04,36.66868324]
[1749928122514,2.64031931,144.08,144.04,36.66868324]
[1749928122718,6.913,144.12,144.04,36.66868324]
[1749928122719,6.913,144.12,144.06,6.9386]
[1749928122920,2.64022035,144.11,144.08,0.05243476]
[1749928123115,6.913,144.12,144.08,0.05243476]
[1749928123321,2.63865187,144.11,144.08,0.05243476]
[1749928123525,7.43447241,144.1,144.08,0.05243476]
[1749928123726,6.9375,144.09,144.08,0.05243476]
[1749928124230,6.9366,144.11,144.08,6.99033476]
[1749928124430,6.9366,144.11,144.08,43.58813872]
[1749928124729,7.8382145,144.15,144.08,36.65023872]
[1749928124918,7.43822061,144.14,144.08,36.65023872]
[1749928125120,7.43810225,144.13,144.08,36.65023872]
[1749928125315,2.64292967,144.12,144.08,36.65023872]
[1749928125517,14.37510173,144.11,144.08,36.65023872]
[1749928125717,6.937,144.11,144.08,36.65023872]
[1749928125932,7.8382145,144.15,144.08,36.65023872]
[1749928126228,6.937,144.11,144.08,36.65023872]
[1749928127219,6.9372,144.1,144.08,36.63023872]
[1749928129132,6.9375,144.09,144.08,36.63023872]
[1749928129527,6.9375,144.09,144.08,0.05023872]
[1749928131334,36.6,144.16,144.09,6.9374]
[1749928131531,36.6,144.16,144.11,0.05131961]
[1749928131935,6.9361,144.12,144.11,0.05131961]
[1749928132330,6.9355,144.14,144.11,0.05131961]
[1749928132529,36.6,144.16,144.11,0.05131961]
[1749928133336,14.8780145,144.17,144.11,36.63131961]
[1749928133822,14.8780145,144.17,144.11,43.56781961]
[1749928134539,6.9354,144.14,144.11,43.56781961]
[1749928134732,6.9354,144.14,144.11,36.63131961]
[1749928135539,6.9354,144.14,144.11,43.56781961]
[1749928136243,6.9354,144.14,144.11,36.63131961]
[1749928136744,44.4182145,144.19,144.11,36.63131961]
[1749928137340,6.935,144.15,144.11,36.63131961]
[1749928138545,6.935,144.15,144.11,43.56751961]
[1749928139538,6.9343,144.16,144.11,36.63131961]
[1749928139743,6.9343,144.16,144.11,41.91747898]
[1749928140043,6.9343,144.16,144.13,6.9352]
[1749928140244,41.86615937,144.19,144.11,41.91747898]
[1749928140438,5.28615937,144.19,144.11,41.91747898]
[1749928141145,43.5534,144.22,144.11,41.91747898]
[1749928141347,5.28615937,144.19,144.15,0.04928919]
[1749928141844,6.9341,144.16,144.15,0.04928919]
[1749928142346,6.9367,144.11,144.07,6.8882]
[1749928142550,5.28615937,144.13,144.07,38.7951]
[1749928142748,5.28615937,144.13,144.07,2.2151]
[1749928142944,5.28615937,144.13,144.07,43.5183]
[1749928143150,5.28615937,144.11,144.07,36.58]
[1749928143653,0.05109291,144.1,144.08,0.04950762]
[1749928144046,6.9379,144.09,144.08,0.04950762]
[1749928147346,12.22405937,144.09,144.08,0.04950762]
[1749928147748,12.22405937,144.09,144.08,7.62e-06]
[1749928148548,19.6762025,144.09,144.08,7.62e-06]
[1749928148855,6.9409,144.02,143.99,36.58]
[1749928149046,22.3120644,144.09,143.99,36.58]
[1749928149047,5.28615937,144.04,143.99,36.58]
[1749928149249,4.80032973,144.03,143.99,36.58]
[1749928149441,41.2262,144.08,143.99,36.58]
[1749928149442,4.80035696,144.02,143.99,36.58]
[1749928149647,4.80020899,144.01,143.99,36.58]
[1749928149950,0.05266604,144.01,143.99,0.05336106]
[1749928150248,6.9434,143.97,143.95,36.58]
[1749928150443,5.28615937,144.0,143.95,36.58]
[1749928150642,2.64346626,143.99,143.95,36.58]
[1749928150841,11.74256704,143.98,143.95,36.58]
[1749928151144,4.79914656,143.97,143.95,36.62671501]
[1749928151348,0.04700715,143.98,143.95,36.62671501]
[1749928151551,6.9433,143.97,143.95,36.62671501]
[1749928151755,0.04700715,143.98,143.95,36.62671501]
[1749928152354,0.04700715,143.98,143.95,43.57081501]
[1749928153545,6.98990715,143.98,143.95,36.62671501]
[1749928153743,0.04700715,143.98,143.95,0.04671501]
[1749928153946,7.89837618,143.98,143.95,0.04671501]
[1749928154153,6.9438,143.96,143.95,0.04671501]
[1749928154749,6.9434,143.97,143.95,0.04671501]
[1749928155452,6.9438,143.96,143.95,0.04671501]
[1749928156254,6.9433,143.97,143.95,0.04671501]
[1749928157556,0.04700715,143.98,143.95,0.04671501]
[1749928157954,6.99010715,143.98,143.95,0.04671501]
[1749928158156,0.04700715,143.98,143.95,0.04671501]
[1749928160060,6.9438,143.96,143.95,0.04671501]
[1749928161956,6.9463,143.91,143.89,36.6]
[1749928162158,7.85136903,143.95,143.88,36.6]
[1749928162354,4.5332,143.96,143.87,36.6]
[1749928162355,7.85136903,143.93,143.87,36.6]
[1749928162859,7.85136903,143.95,143.88,6.9474]
[1749928163162,0.0490982,143.93,143.9,0.04412995]
[1749928163465,6.9462,143.91,143.9,0.04412995]
[1749928165163,14.79756903,143.91,143.9,2.995e-05]
[1749928166974,6.9489,143.86,143.84,36.6]
[1749928167265,7.85136903,143.89,143.8,38.8861]
[1749928167471,7.85136903,143.87,143.8,38.8861]
[1749928167870,0.0474471,143.85,143.82,0.04843596]
[1749928168273,6.9501,143.83,143.82,0.04843596]
[1749928170170,14.80146903,143.83,143.82,3.596e-05]
[1749928170879,6.9525,143.78,143.77,36.62]
[1749928171172,7.85136903,143.81,143.74,39.6392]
[1749928171370,45.15136903,143.81,143.74,37.3]
[1749928171579,37.3,143.81,143.74,37.3]
[1749928171778,0.0494221,143.79,143.76,0.0493605]
[1749928171971,0.0494221,143.79,143.76,7.0023605]
[1749928172877,0.0494221,143.79,143.76,0.0493605]
[1749928174069,7.0015221,143.79,143.76,0.0493605]
[1749928174275,0.0494221,143.79,143.76,0.0493605]
[1749928174770,0.0494221,143.79,143.77,6.9526]
[1749928174975,0.0494221,143.79,143.76,0.0493605]
[1749928175379,0.0494221,143.79,143.76,7.0025605]
[1749928175982,7.0017221,143.79,143.76,0.0493605]
[1749928176674,0.0494221,143.79,143.76,0.0493605]
[1749928177280,6.953,143.77,143.76,0.0493605]
[1749928182284,6.953,143.77,143.76,6.05e-05]
[1749928182489,14.80436903,143.77,143.76,6.05e-05]
[1749928183279,6.9562,143.71,143.69,400.12]
[1749928183482,7.85136903,143.75,143.68,39.6353]
[1749928183892,6.9549,143.73,143.68,39.6353]
[1749928184096,49.91536903,143.77,143.68,39.6353]
[1749928184283,49.91536903,143.77,143.68,46.5924]
[1749928184484,0.04741147,143.74,143.71,0.0437549]
[1749928185082,6.9554,143.72,143.71,0.0437549]
[1749928185581,0.04741147,143.74,143.71,0.0437549]
[1749928186093,6.9552,143.73,143.71,0.0437549]
[1749928187583,0.04741147,143.74,143.71,0.0437549]
[1749928188186,6.9554,143.72,143.71,0.0437549]
[1749928189993,6.9551,143.73,143.71,0.0437549]
[1749928190297,0.04741147,143.74,143.71,0.0437549]
[1749928190497,6.9554,143.72,143.71,0.0437549]
[1749928191296,0.04741147,143.74,143.71,0.0437549]
[1749928191799,7.00211147,143.74,143.71,0.0437549]
[1749928192100,0.04741147,143.74,143.71,0.0437549]
[1749928193398,0.04741147,143.74,143.72,6.9551]
[1749928194596,0.04741147,143.74,143.71,0.0437549]
[1749928196103,0.04741147,143.74,143.72,37.34]
[1749928196296,0.04741147,143.74,143.73,2.2477]
[1749928197298,37.34,143.8,143.74,6.9544]
[1749928197606,6.9537,143.76,143.73,9.2024]
[1749928198205,7.00144708,143.76,143.74,6.9544]
[1749928198903,7.00144708,143.76,143.73,9.25054469]
[1749928199516,0.04774708,143.76,143.74,6.9544]
[1749928200117,7.00114708,143.76,143.73,9.25064469]
[1749928200720,7.00114708,143.76,143.74,6.9543]
[1749928201521,7.00114708,143.76,143.73,9.25064469]
[1749928201715,0.04774708,143.76,143.73,2.29594469]
[1749928201916,0.04774708,143.76,143.73,0.04824469]
[1749928202422,6.9543,143.75,143.73,0.04824469]
[1749928202821,0.04774708,143.76,143.73,0.04824469]
[1749928203526,0.04774708,143.76,143.73,7.00294469]
[1749928203818,0.04774708,143.76,143.73,0.04824469]
[1749928204228,6.9544,143.74,143.73,0.04824469]
[1749928205721,6.9541,143.75,143.73,0.04824469]
[1749928206426,7.00124708,143.76,143.73,0.04824469]
[1749928206613,0.04774708,143.76,143.73,0.04824469]
[1749928207128,6.9539,143.75,143.73,0.04824469]
[1749928209224,6.9544,143.74,143.73,0.04824469]
[1749928213138,6.9544,143.74,143.73,4.469e-05]
[1749928219946,6.9586,143.66,143.64,13.11284232]
[1749928220246,37.32,143.72,143.64,41.9818]
[1749928220441,37.32,143.72,143.66,6.9582]
[1749928220635,6.9566,143.7,143.66,6.9582]
[1749928220839,37.32,143.72,143.65,8.45104232]
[1749928221040,0.05311899,143.7,143.67,7.00749597]
[1749928223647,0.05311899,143.7,143.67,0.04999597]
[1749928224446,0.05311899,143.7,143.67,7.00779597]
[1749928225454,0.05311899,143.7,143.67,0.04999597]
[1749928225646,37.32,143.78,143.68,45.17136903]
[1749928225851,2.57149826,143.77,143.7,7.85136903]
[1749928226043,2.57149826,143.77,143.73,6.9544]
[1749928226044,6.9533,143.77,143.73,6.9544]
[1749928226650,7.00061555,143.76,143.74,0.05102208]
[1749928227550,7.00061555,143.76,143.74,7.00542208]
[1749928228252,0.04701555,143.76,143.75,6.9539]
[1749928230356,0.04701555,143.76,143.74,7.00522208]
[1749928231659,6.9539,143.75,143.74,0.05102208]
[1749928233060,0.04701555,143.76,143.74,0.05102208]
[1749928235652,0.04701555,143.76,143.75,6.9539]
[1749928243174,0.04701555,143.76,143.74,7.00522208]
[1749928243368,0.04701555,143.76,143.74,0.05102208]
[1749928243977,0.04701555,143.76,143.75,6.9539]
[1749928245069,0.04701555,143.76,143.74,7.00522208]
[1749928245671,0.04701555,143.76,143.75,6.9539]
[1749928245872,42.43219832,143.87,143.75,5.31219832]
[1749928246073,2.59048583,143.86,143.79,5.31219832]
[1749928246274,6.7057,143.89,143.82,6.9505]
[1749928246275,9.5398923,143.85,143.82,6.9505]
[1749928246479,6.7057,143.89,143.82,37.12]
[1749928246677,2.59079588,143.88,143.82,37.12]
[1749928246978,0.05060327,143.86,143.84,0.04566237]
[1749928247480,41.5827,143.93,143.86,6.9484]
[1749928247781,2.59084904,143.92,143.86,44.0684]
[1749928248178,41.5827,143.93,143.86,44.0684]
[1749928248682,6.9472,143.89,143.88,0.05125688]
[1749928249776,6.949,143.86,143.83,37.12]
[1749928249980,7.85973837,143.9,143.83,37.12]
[1749928250372,7.85973837,143.9,143.84,6.9493]
[1749928250883,0.0458954,143.88,143.86,0.05015503]
[1749928251484,6.9482,143.87,143.86,0.05015503]
[1749928256691,6.9482,143.87,143.86,5.503e-05]
[1749928256887,6.9508,143.82,143.79,39.3073]
[1749928257085,7.85973837,143.85,143.79,37.1]
[1749928257387,4.6125,143.87,143.79,37.1]
[1749928257388,7.85973837,143.83,143.79,37.1]
[1749928257776,0.0520692,143.82,143.8,0.04996716]
[1749928258381,0.0520692,143.82,143.76,2.3849]
[1749928258382,0.0520692,143.82,143.76,39.4849]
[1749928259085,0.0520692,143.82,143.76,46.4382]
[1749928259282,0.0520692,143.82,143.78,0.05122562]
[1749928259682,6.9511,143.81,143.78,0.05122562]
[1749928260280,7.0027692,143.82,143.78,0.05122562]
[1749928260480,0.0520692,143.82,143.78,0.05122562]
[1749928260686,0.0520692,143.82,143.79,7.85973837]
[1749928260982,7.85973837,143.9,143.81,7.85973837]
[1749928261182,7.85973837,143.9,143.82,2.4013]
[1749928261786,6.99574871,143.87,143.85,0.04637169]
[1749928261979,0.04734871,143.87,143.85,0.04637169]
[1749928262289,6.9486,143.86,143.85,0.04637169]
[1749928263693,6.99564871,143.87,143.85,0.04637169]
[1749928263886,0.04734871,143.87,143.85,0.04637169]
[1749928265392,0.04734871,143.87,143.85,6.99517169]
[1749928265585,0.04734871,143.87,143.85,0.04637169]
[1749928265904,6.9459,143.92,143.89,6.9468]
[1749928266191,36.94,143.95,143.88,36.94]
[1749928266583,7.85973837,143.94,143.88,36.94]
[1749928266994,0.04893398,143.92,143.9,0.05197177]
[1749928267389,6.9465,143.91,143.9,0.05197177]
[1749928267894,7.90867235,143.92,143.85,43.8889]
[1749928268193,7.85973837,143.92,143.85,36.94]
[1749928268595,7.85973837,143.92,143.85,43.8889]
[1749928268783,0.04869708,143.9,143.87,0.04908017]
[1749928269186,6.9474,143.89,143.87,0.04908017]
[1749928269787,6.9476,143.88,143.87,0.04908017]
[1749928270197,0.04869708,143.9,143.87,0.04908017]
[1749928270389,6.9473,143.89,143.87,0.04908017]
[1749928272592,6.9476,143.88,143.87,0.04908017]
[1749928272795,7.85973837,143.89,143.82,41.6339]
[1749928272996,6.9481,143.87,143.82,41.6339]
[1749928273299,7.85973837,143.89,143.83,6.95]
[1749928273699,0.04488248,143.87,143.82,36.94]
[1749928273998,0.04488248,143.87,143.83,0.04736174]
[1749928273999,7.90462085,143.87,143.83,0.04736174]
[1749928274210,0.04461347,143.86,143.83,0.04736174]
[1749928275094,0.04461347,143.86,143.83,36.98736174]
[1749928276101,0.04461347,143.86,143.85,6.9491]
[1749928279297,2.3358,143.93,143.84,6.827]
[1749928279499,4.71601477,143.92,143.84,6.827]